[Event "*** SCC Grand Prix: Titled Tuesday Blitz"]
[Site "Chess.com"]
[Date "2020.07.14"]
[Round "10"]
[White "ItsCheckM8Mate"]
[Black "TST2014"]
[Result "0-1"]
[WhiteElo "2288"]
[BlackElo "2496"]
[TimeControl "180+1"]
[EndTime "11:59:46 PDT"]
[Termination "TST2014 won on time"]

1. e4 {[%clk 0:03:00.9]} 1... c5 {[%clk 0:02:58.6]} 2. Nf3 {[%clk 0:02:59]} 2...
Nc6 {[%clk 0:02:56.6]} 3. d4 {[%clk 0:02:59.2]} 3... cxd4 {[%clk 0:02:57.5]} 4.
Nxd4 {[%clk 0:03:00.1]} 4... Nf6 {[%clk 0:02:57.5]} 5. Nc3 {[%clk 0:03:00.3]}
5... d6 {[%clk 0:02:57.7]} 6. Bg5 {[%clk 0:02:59.3]} 6... e6 {[%clk 0:02:57.7]}
7. Qd2 {[%clk 0:02:59.2]} 7... a6 {[%clk 0:02:57.9]} 8. O-O-O {[%clk 0:02:59.1]}
8... Bd7 {[%clk 0:02:58]} 9. f3 {[%clk 0:02:56.9]} 9... b5 {[%clk 0:02:56.9]}
10. Nxc6 {[%clk 0:02:53.3]} 10... Bxc6 {[%clk 0:02:56.4]} 11. Kb1 {[%clk
0:02:53.6]} 11... Be7 {[%clk 0:02:52.8]} 12. h4 {[%clk 0:02:50.3]} 12... h6
{[%clk 0:02:51.4]} 13. Be3 {[%clk 0:02:49.6]} 13... Nd7 {[%clk 0:02:48.1]} 14.
Ne2 {[%clk 0:02:42.2]} 14... d5 {[%clk 0:02:38.2]} 15. Nd4 {[%clk 0:02:32.9]}
15... Bb7 {[%clk 0:02:36.3]} 16. exd5 {[%clk 0:02:22.6]} 16... Bxd5 {[%clk
0:02:34.6]} 17. Nf5 {[%clk 0:02:16.5]} 17... O-O {[%clk 0:02:23.3]} 18. Nxe7+
{[%clk 0:02:11.3]} 18... Qxe7 {[%clk 0:02:22.6]} 19. Be2 {[%clk 0:01:50.6]}
19... Rfd8 {[%clk 0:02:19.3]} 20. Qc1 {[%clk 0:01:35.3]} 20... Rac8 {[%clk
0:02:09.8]} 21. g4 {[%clk 0:01:33.2]} 21... Ne5 {[%clk 0:02:09.3]} 22. g5 {[%clk
0:01:26.5]} 22... h5 {[%clk 0:02:01]} 23. g6 {[%clk 0:01:21.6]} 23... Nxg6
{[%clk 0:01:59.6]} 24. Rhg1 {[%clk 0:01:17.9]} 24... Qxh4 {[%clk 0:01:35.5]} 25.
Bg5 {[%clk 0:01:17]} 25... Qa4 {[%clk 0:01:34.8]} 26. b3 {[%clk 0:01:13.3]}
26... Qa5 {[%clk 0:01:24.2]} 27. Bxd8 {[%clk 0:01:12.7]} 27... Rxd8 {[%clk
0:01:23.4]} 28. Qg5 {[%clk 0:00:59.6]} 28... Rc8 {[%clk 0:01:10.7]} 29. Bd3
{[%clk 0:00:54.1]} 29... Bxf3 {[%clk 0:01:09.6]} 30. Bxg6 {[%clk 0:00:45.4]}
30... fxg6 {[%clk 0:00:57]} 31. Qxg6 {[%clk 0:00:42.4]} 31... Qc7 {[%clk
0:00:48.4]} 32. Qxe6+ {[%clk 0:00:37.1]} 32... Kh8 {[%clk 0:00:47.4]} 33. Rd2
{[%clk 0:00:36.5]} 33... Bg4 {[%clk 0:00:40.8]} 34. Qd5 {[%clk 0:00:23.4]} 34...
Rf8 {[%clk 0:00:36.4]} 35. Qd4 {[%clk 0:00:19.2]} 35... Rf4 {[%clk 0:00:32.2]}
36. Qd5 {[%clk 0:00:15.2]} 36... Qf7 {[%clk 0:00:29.2]} 37. Qa8+ {[%clk
0:00:10.3]} 37... Kh7 {[%clk 0:00:28.5]} 38. Re1 {[%clk 0:00:09]} 38... Rf1
{[%clk 0:00:22.7]} 39. Qe4+ {[%clk 0:00:08.5]} 39... g6 {[%clk 0:00:22.7]} 40.
Rxf1 {[%clk 0:00:06.9]} 40... Qxf1+ {[%clk 0:00:23.6]} 41. Kb2 {[%clk
0:00:07.3]} 41... Qf6+ {[%clk 0:00:24.1]} 42. c3 {[%clk 0:00:07.5]} 42... Kh6
{[%clk 0:00:23.5]} 43. Qe3+ {[%clk 0:00:05.9]} 43... g5 {[%clk 0:00:23.7]} 44.
Rf2 {[%clk 0:00:04.6]} 44... Qg6 {[%clk 0:00:22]} 45. Qe5 {[%clk 0:00:04]} 45...
Kh7 {[%clk 0:00:16.6]} 46. Rf6 {[%clk 0:00:03.6]} 46... Qg7 {[%clk 0:00:15]} 47.
Qd4 {[%clk 0:00:02.4]} 47... b4 {[%clk 0:00:12.7]} 48. Qf2 {[%clk 0:00:02.6]}
48... bxc3+ {[%clk 0:00:12.4]} 49. Kc2 {[%clk 0:00:03]} 49... Kg8 {[%clk
0:00:08.5]} 50. Kxc3 {[%clk 0:00:02.1]} 50... Bd7 {[%clk 0:00:08.5]} 51. Kc2
{[%clk 0:00:02]} 51... Be8 {[%clk 0:00:08.8]} 52. Kb1 {[%clk 0:00:01.6]} 52...
Bg6+ {[%clk 0:00:09.4]} 53. Kc1 {[%clk 0:00:02.1]} 53... h4 {[%clk 0:00:10]} 54.
Rd6 {[%clk 0:00:01.1]} 54... Qc3+ {[%clk 0:00:09.2]} 55. Kd1 {[%clk 0:00:01.1]}
55... Qa1+ {[%clk 0:00:09.3]} 0-1

[Event "*** SCC Grand Prix: Titled Tuesday Blitz"]
[Site "Chess.com"]
[Date "2020.07.14"]
[Round "10"]
[White "Djager97"]
[Black "chessplayer9919"]
[Result "0-1"]
[WhiteElo "2452"]
[BlackElo "2635"]
[TimeControl "180+1"]
[EndTime "11:59:47 PDT"]
[Termination "chessplayer9919 won by resignation"]

1. e4 {[%clk 0:03:00.9]} 1... e5 {[%clk 0:02:57.2]} 2. Nf3 {[%clk 0:03:00.7]}
2... Nc6 {[%clk 0:02:56.1]} 3. d4 {[%clk 0:03:01.3]} 3... exd4 {[%clk
0:02:54.3]} 4. Nxd4 {[%clk 0:03:02.2]} 4... Nf6 {[%clk 0:02:53.8]} 5. Nxc6
{[%clk 0:03:02.5]} 5... bxc6 {[%clk 0:02:52.1]} 6. e5 {[%clk 0:03:03.1]} 6...
Qe7 {[%clk 0:02:52.3]} 7. Qe2 {[%clk 0:03:03.7]} 7... Nd5 {[%clk 0:02:52.2]} 8.
c4 {[%clk 0:03:04.4]} 8... Ba6 {[%clk 0:02:51.8]} 9. b3 {[%clk 0:03:04.3]} 9...
g6 {[%clk 0:02:49.2]} 10. g3 {[%clk 0:03:04]} 10... Bg7 {[%clk 0:02:47.4]} 11.
Bb2 {[%clk 0:03:04.4]} 11... O-O {[%clk 0:02:47]} 12. Bg2 {[%clk 0:03:04.4]}
12... Rae8 {[%clk 0:02:39.3]} 13. O-O {[%clk 0:03:04.7]} 13... Bxe5 {[%clk
0:02:34.8]} 14. Qxe5 {[%clk 0:03:05.6]} 14... Qxe5 {[%clk 0:02:35.7]} 15. Bxe5
{[%clk 0:03:06.5]} 15... Rxe5 {[%clk 0:02:36.6]} 16. cxd5 {[%clk 0:03:07.4]}
16... Bxf1 {[%clk 0:02:37.2]} 17. Kxf1 {[%clk 0:03:08.3]} 17... cxd5 {[%clk
0:02:38.1]} 18. Nc3 {[%clk 0:03:07.4]} 18... c6 {[%clk 0:02:38]} 19. Rd1 {[%clk
0:03:07.4]} 19... Rfe8 {[%clk 0:02:34.7]} 20. Bf3 {[%clk 0:03:06.5]} 20... Kg7
{[%clk 0:02:34.4]} 21. Ne2 {[%clk 0:03:06.5]} 21... h5 {[%clk 0:02:27.4]} 22.
Rd4 {[%clk 0:03:04.5]} 22... Kh6 {[%clk 0:02:11.8]} 23. Ra4 {[%clk 0:03:04.3]}
23... g5 {[%clk 0:02:07.3]} 24. h3 {[%clk 0:02:32.7]} 24... f5 {[%clk
0:02:03.8]} 25. g4 {[%clk 0:02:15.6]} 25... fxg4 {[%clk 0:01:10.9]} 26. hxg4
{[%clk 0:02:16.5]} 26... h4 {[%clk 0:01:10.8]} 27. Rxa7 {[%clk 0:02:12.3]} 27...
R8e7 {[%clk 0:01:08.1]} 28. Nd4 {[%clk 0:02:09.4]} 28... Kg6 {[%clk 0:01:03.7]}
29. Kg2 {[%clk 0:02:03.3]} 29... Re1 {[%clk 0:00:53.6]} 30. a4 {[%clk
0:01:35.3]} 30... Kf6 {[%clk 0:00:38.4]} 31. a5 {[%clk 0:01:30.7]} 31... Ra1
{[%clk 0:00:37]} 32. a6 {[%clk 0:01:25.7]} 32... Re8 {[%clk 0:00:19.5]} 33. Rxd7
{[%clk 0:00:57]} 33... Rxa6 {[%clk 0:00:18.4]} 34. Rd6+ {[%clk 0:00:57.3]} 34...
Ke5 {[%clk 0:00:17.2]} 35. Rxc6 {[%clk 0:00:57.5]} 35... Rxc6 {[%clk 0:00:12.1]}
36. Nxc6+ {[%clk 0:00:58.3]} 36... Kd6 {[%clk 0:00:12.7]} 37. Nd4 {[%clk
0:00:57.7]} 37... Ke5 {[%clk 0:00:12.6]} 38. Nf5 {[%clk 0:00:48.1]} 38... d4
{[%clk 0:00:11.2]} 39. b4 {[%clk 0:00:30.9]} 39... d3 {[%clk 0:00:11.3]} 40. b5
{[%clk 0:00:26]} 40... d2 {[%clk 0:00:11.5]} 41. Ne3 {[%clk 0:00:24.2]} 41...
Kd4 {[%clk 0:00:04.1]} 42. b6 {[%clk 0:00:20.6]} 42... Rb8 {[%clk 0:00:01.8]}
43. b7 {[%clk 0:00:20]} 43... Kd3 {[%clk 0:00:02.1]} 44. Nf5 {[%clk 0:00:07.6]}
44... Rxb7 {[%clk 0:00:01.2]} 45. Ne3 {[%clk 0:00:01.8]} 45... Rb8 {[%clk
0:00:01.6]} 46. Nd1 {[%clk 0:00:01.8]} 46... Kc2 {[%clk 0:00:01.6]} 47. Kf1
{[%clk 0:00:02.1]} 47... Kc1 {[%clk 0:00:02.5]} 48. Ke2 {[%clk 0:00:02.4]} 48...
Rh8 {[%clk 0:00:03.4]} 49. Ne3 {[%clk 0:00:01.6]} 49... h3 {[%clk 0:00:04.3]}
50. Kd3 {[%clk 0:00:01.8]} 50... h2 {[%clk 0:00:04.7]} 51. Bh1 {[%clk
0:00:02.5]} 51... d1=Q+ {[%clk 0:00:05.1]} 52. Nxd1 {[%clk 0:00:02.6]} 52...
Kxd1 {[%clk 0:00:06]} 53. Ke3 {[%clk 0:00:02.7]} 53... Ke1 {[%clk 0:00:06.5]}
54. f4 {[%clk 0:00:03.4]} 54... Kf1 {[%clk 0:00:07]} 55. fxg5 {[%clk 0:00:03.2]}
55... Kg1 {[%clk 0:00:07.4]} 56. Bf3 {[%clk 0:00:03.7]} 56... Rh3 {[%clk
0:00:06.9]} 57. g6 {[%clk 0:00:03.7]} 57... h1=Q {[%clk 0:00:06.8]} 0-1

[Event "*** SCC Grand Prix: Titled Tuesday Blitz"]
[Site "Chess.com"]
[Date "2020.07.14"]
[Round "10"]
[White "Euge_chess"]
[Black "pavelalexandru07"]
[Result "1-0"]
[WhiteElo "2016"]
[BlackElo "2121"]
[TimeControl "180+1"]
[EndTime "11:59:47 PDT"]
[Termination "Euge_chess won on time"]

1. e4 {[%clk 0:03:00.9]} 1... c5 {[%clk 0:02:59.2]} 2. Nf3 {[%clk 0:03:00.4]}
2... d6 {[%clk 0:02:59.4]} 3. c3 {[%clk 0:03:00.2]} 3... Nf6 {[%clk 0:02:58.7]}
4. Be2 {[%clk 0:02:59.4]} 4... Nbd7 {[%clk 0:02:56.8]} 5. Qc2 {[%clk 0:02:57.2]}
5... g6 {[%clk 0:02:56.9]} 6. d4 {[%clk 0:02:56.5]} 6... cxd4 {[%clk 0:02:55.6]}
7. cxd4 {[%clk 0:02:55.6]} 7... e5 {[%clk 0:02:55.7]} 8. dxe5 {[%clk 0:02:51.8]}
8... dxe5 {[%clk 0:02:55.5]} 9. Nc3 {[%clk 0:02:50.5]} 9... Bg7 {[%clk
0:02:43.1]} 10. O-O {[%clk 0:02:49.1]} 10... O-O {[%clk 0:02:42.7]} 11. Rd1
{[%clk 0:02:46.5]} 11... Qe7 {[%clk 0:02:41.7]} 12. Bg5 {[%clk 0:02:43.6]} 12...
Nb6 {[%clk 0:02:34.9]} 13. a4 {[%clk 0:02:35.6]} 13... h6 {[%clk 0:02:32.5]} 14.
Bh4 {[%clk 0:02:32.4]} 14... g5 {[%clk 0:02:31.3]} 15. Bg3 {[%clk 0:02:31.6]}
15... Nh5 {[%clk 0:02:30.4]} 16. a5 {[%clk 0:02:12.4]} 16... Nxg3 {[%clk
0:02:28.7]} 17. hxg3 {[%clk 0:02:11.7]} 17... Nd7 {[%clk 0:02:28.3]} 18. Nd5
{[%clk 0:02:09.9]} 18... Qc5 {[%clk 0:02:18.5]} 19. Qb3 {[%clk 0:02:01.6]} 19...
Nf6 {[%clk 0:01:58.3]} 20. Rdc1 {[%clk 0:01:41.2]} 20... Qd6 {[%clk 0:01:54.4]}
21. Rd1 {[%clk 0:01:33.6]} 21... Nxe4 {[%clk 0:01:30.8]} 22. Qc4 {[%clk
0:01:12]} 22... Bf5 {[%clk 0:01:06]} 23. Nb6 {[%clk 0:01:08.4]} 23... Qg6 {[%clk
0:00:51.6]} 24. Nxa8 {[%clk 0:01:04]} 24... Rxa8 {[%clk 0:00:52.5]} 25. Bd3
{[%clk 0:00:58.6]} 25... Bf6 {[%clk 0:00:37.8]} 26. Bxe4 {[%clk 0:00:57]} 26...
Bxe4 {[%clk 0:00:38.7]} 27. Nd2 {[%clk 0:00:54.4]} 27... Bc6 {[%clk 0:00:37.5]}
28. a6 {[%clk 0:00:49.2]} 28... e4 {[%clk 0:00:33.1]} 29. axb7 {[%clk
0:00:44.5]} 29... Bxb7 {[%clk 0:00:34]} 30. Re1 {[%clk 0:00:36.8]} 30... Qf5
{[%clk 0:00:30]} 31. Nxe4 {[%clk 0:00:33]} 31... Bg7 {[%clk 0:00:14.2]} 32. Nd6
{[%clk 0:00:30.9]} 32... Qd7 {[%clk 0:00:14.7]} 33. Nxb7 {[%clk 0:00:30.3]}
33... Qxb7 {[%clk 0:00:14.5]} 34. Rad1 {[%clk 0:00:27.7]} 34... Bxb2 {[%clk
0:00:12.1]} 35. Rb1 {[%clk 0:00:26.5]} 35... Rb8 {[%clk 0:00:11.6]} 36. Re2
{[%clk 0:00:24.3]} 36... a5 {[%clk 0:00:02.8]} 37. Rexb2 {[%clk 0:00:23]} 37...
Qxb2 {[%clk 0:00:01.8]} 38. Rxb2 {[%clk 0:00:22.5]} 38... Rxb2 {[%clk
0:00:02.4]} 39. Qc8+ {[%clk 0:00:21.4]} 39... Kh7 {[%clk 0:00:02.7]} 40. Qc4
{[%clk 0:00:18.7]} 40... Rb1+ {[%clk 0:00:02.1]} 41. Kh2 {[%clk 0:00:17.9]}
41... Kg7 {[%clk 0:00:01.5]} 42. Qd4+ {[%clk 0:00:16.3]} 42... Kg8 {[%clk
0:00:01.8]} 43. Qd8+ {[%clk 0:00:15.3]} 43... Kg7 {[%clk 0:00:02]} 44. Qxa5
{[%clk 0:00:15.2]} 44... Rd1 {[%clk 0:00:02]} 45. Qf5 {[%clk 0:00:13.8]} 45...
Rd6 {[%clk 0:00:01.3]} 46. g4 {[%clk 0:00:13.3]} 46... Rf6 {[%clk 0:00:01.5]}
47. Qe5 {[%clk 0:00:12.9]} 47... Kg6 {[%clk 0:00:02]} 48. f3 {[%clk 0:00:12.9]}
48... Re6 {[%clk 0:00:02.3]} 49. Qd5 {[%clk 0:00:11.1]} 49... Kg7 {[%clk
0:00:02.6]} 50. Kg3 {[%clk 0:00:10.7]} 50... Rf6 {[%clk 0:00:03]} 51. Qe5 {[%clk
0:00:10]} 51... Kg6 {[%clk 0:00:02.4]} 52. Qe4+ {[%clk 0:00:09.6]} 52... Kg7
{[%clk 0:00:02.6]} 53. Kf2 {[%clk 0:00:09]} 53... Re6 {[%clk 0:00:02.9]} 54.
Qd4+ {[%clk 0:00:08.3]} 54... Kg6 {[%clk 0:00:02.7]} 55. g3 {[%clk 0:00:08.2]}
55... Rf6 {[%clk 0:00:01.6]} 56. f4 {[%clk 0:00:07.1]} 56... gxf4 {[%clk
0:00:01.8]} 57. gxf4 {[%clk 0:00:07]} 57... Kg7 {[%clk 0:00:02]} 58. Kg3 {[%clk
0:00:06.7]} 58... Kg6 {[%clk 0:00:01.8]} 59. Qe5 {[%clk 0:00:05.3]} 1-0

[Event "*** SCC Grand Prix: Titled Tuesday Blitz"]
[Site "Chess.com"]
[Date "2020.07.14"]
[Round "10"]
[White "Chigorinetz"]
[Black "whodee11"]
[Result "0-1"]
[WhiteElo "2512"]
[BlackElo "2428"]
[TimeControl "180+1"]
[EndTime "11:59:52 PDT"]
[Termination "whodee11 won on time"]

1. e4 {[%clk 0:03:00.9]} 1... c5 {[%clk 0:02:37.8]} 2. Nc3 {[%clk 0:02:59.8]}
2... Nc6 {[%clk 0:02:37]} 3. Nge2 {[%clk 0:02:59.5]} 3... d6 {[%clk 0:02:36.4]}
4. g3 {[%clk 0:02:58.1]} 4... g6 {[%clk 0:02:36.2]} 5. Bg2 {[%clk 0:02:57]} 5...
Bg7 {[%clk 0:02:36.1]} 6. O-O {[%clk 0:02:57.9]} 6... Nh6 {[%clk 0:02:36]} 7. h3
{[%clk 0:02:57.7]} 7... O-O {[%clk 0:02:35.9]} 8. g4 {[%clk 0:02:57.7]} 8... f6
{[%clk 0:02:31.2]} 9. Ng3 {[%clk 0:02:55]} 9... e5 {[%clk 0:02:30.9]} 10. Nd5
{[%clk 0:02:52.9]} 10... Nf7 {[%clk 0:02:30.1]} 11. c3 {[%clk 0:02:50.1]} 11...
Ne7 {[%clk 0:02:29.4]} 12. Nxe7+ {[%clk 0:02:46.4]} 12... Qxe7 {[%clk
0:02:30.3]} 13. d4 {[%clk 0:02:46.4]} 13... b6 {[%clk 0:02:20.8]} 14. a4 {[%clk
0:02:44.5]} 14... a5 {[%clk 0:02:19.9]} 15. f4 {[%clk 0:02:41.8]} 15... exf4
{[%clk 0:02:16.3]} 16. Bxf4 {[%clk 0:02:40.2]} 16... Ba6 {[%clk 0:02:11.4]} 17.
Rf2 {[%clk 0:02:39.4]} 17... Rad8 {[%clk 0:02:10.5]} 18. Qb3 {[%clk 0:02:38]}
18... Qc7 {[%clk 0:01:48.9]} 19. Rd1 {[%clk 0:02:34.6]} 19... Kh8 {[%clk
0:01:46.5]} 20. h4 {[%clk 0:02:28]} 20... c4 {[%clk 0:01:38.3]} 21. Qc2 {[%clk
0:02:26.6]} 21... b5 {[%clk 0:01:38]} 22. axb5 {[%clk 0:02:24.9]} 22... Bxb5
{[%clk 0:01:38.9]} 23. h5 {[%clk 0:02:24.4]} 23... Bh6 {[%clk 0:01:33.9]} 24.
Rdf1 {[%clk 0:02:03.9]} 24... Bxf4 {[%clk 0:01:28.2]} 25. Rxf4 {[%clk
0:02:03.5]} 25... Kg7 {[%clk 0:01:28.2]} 26. Rxf6 {[%clk 0:02:02.3]} 26... Ng5
{[%clk 0:01:26.1]} 27. Qf2 {[%clk 0:01:56.5]} 27... Qe7 {[%clk 0:01:23.6]} 28.
h6+ {[%clk 0:01:51.2]} 28... Kg8 {[%clk 0:01:22.9]} 29. e5 {[%clk 0:01:50.6]}
29... Rxf6 {[%clk 0:01:16.9]} 30. Qxf6 {[%clk 0:01:32.7]} 30... Qxf6 {[%clk
0:01:12.3]} 31. Rxf6 {[%clk 0:01:29.4]} 31... dxe5 {[%clk 0:01:11.5]} 32. Ne2
{[%clk 0:01:24.8]} 32... e4 {[%clk 0:00:53.2]} 33. Kf2 {[%clk 0:01:19.5]} 33...
Rf8 {[%clk 0:00:51.9]} 34. Rxf8+ {[%clk 0:01:18.4]} 34... Kxf8 {[%clk
0:00:52.8]} 35. Ke3 {[%clk 0:01:16.4]} 35... Bc6 {[%clk 0:00:51.9]} 36. Kf4
{[%clk 0:01:12]} 36... Nf3 {[%clk 0:00:40.5]} 37. g5 {[%clk 0:00:59.1]} 37...
Ne1 {[%clk 0:00:34.4]} 38. Bxe4 {[%clk 0:00:41.2]} 38... Nd3+ {[%clk 0:00:33.7]}
39. Ke3 {[%clk 0:00:41]} 39... Bxe4 {[%clk 0:00:30.9]} 40. Kxe4 {[%clk
0:00:40.8]} 40... Nxb2 {[%clk 0:00:31.8]} 41. Kd5 {[%clk 0:00:34.4]} 41... a4
{[%clk 0:00:31.5]} 42. Nc1 {[%clk 0:00:32.6]} 42... a3 {[%clk 0:00:32.4]} 43.
Na2 {[%clk 0:00:32]} 43... Ke7 {[%clk 0:00:31.2]} 44. Kc5 {[%clk 0:00:31.4]}
44... Kd7 {[%clk 0:00:30.9]} 45. Kb4 {[%clk 0:00:30.6]} 45... Kc6 {[%clk
0:00:21]} 46. Kxa3 {[%clk 0:00:29.6]} 46... Nd1 {[%clk 0:00:20.8]} 47. Kb4
{[%clk 0:00:27.9]} 47... Kd5 {[%clk 0:00:21.7]} 48. Kb5 {[%clk 0:00:27.6]} 48...
Nxc3+ {[%clk 0:00:17.9]} 49. Nxc3+ {[%clk 0:00:26.8]} 49... Kxd4 {[%clk
0:00:18.8]} 50. Kb4 {[%clk 0:00:25.5]} 50... Ke5 {[%clk 0:00:18.7]} 51. Kxc4
{[%clk 0:00:18.1]} 51... Kf5 {[%clk 0:00:19.6]} 52. Kd4 {[%clk 0:00:14.6]} 52...
Kxg5 {[%clk 0:00:20.5]} 53. Ke5 {[%clk 0:00:14.4]} 53... Kxh6 {[%clk 0:00:21.4]}
54. Kf4 {[%clk 0:00:12.3]} 54... g5+ {[%clk 0:00:21.5]} 55. Kf5 {[%clk
0:00:11.3]} 55... Kh5 {[%clk 0:00:21]} 56. Ne4 {[%clk 0:00:10.7]} 56... g4
{[%clk 0:00:21.1]} 57. Ng3+ {[%clk 0:00:07.8]} 57... Kh4 {[%clk 0:00:20.7]} 58.
Kf4 {[%clk 0:00:07.7]} 58... h5 {[%clk 0:00:19.9]} 59. Nf5+ {[%clk 0:00:03.8]}
59... Kh3 {[%clk 0:00:18.2]} 60. Ne3 {[%clk 0:00:03.3]} 60... g3 {[%clk
0:00:15]} 61. Kf3 {[%clk 0:00:02.6]} 61... Kh2 {[%clk 0:00:10.5]} 62. Nf1+
{[%clk 0:00:01.1]} 62... Kg1 {[%clk 0:00:10.5]} 0-1

[Event "*** SCC Grand Prix: Titled Tuesday Blitz"]
[Site "Chess.com"]
[Date "2020.07.14"]
[Round "10"]
[White "GM_LOADING"]
[Black "WIDBIFS"]
[Result "1-0"]
[WhiteElo "2596"]
[BlackElo "2732"]
[TimeControl "180+1"]
[EndTime "11:59:53 PDT"]
[Termination "GM_LOADING won by resignation"]

1. e4 {[%clk 0:03:00.9]} 1... g6 {[%clk 0:03:00.2]} 2. d4 {[%clk 0:03:00.6]}
2... Bg7 {[%clk 0:03:00.6]} 3. Nc3 {[%clk 0:03:01.3]} 3... c6 {[%clk 0:03:01.2]}
4. Bc4 {[%clk 0:03:00.6]} 4... d6 {[%clk 0:03:00.6]} 5. Nf3 {[%clk 0:03:00]}
5... Nf6 {[%clk 0:02:57.8]} 6. Bb3 {[%clk 0:02:59.4]} 6... O-O {[%clk
0:02:56.8]} 7. O-O {[%clk 0:02:59.1]} 7... Bg4 {[%clk 0:02:56]} 8. h3 {[%clk
0:02:56.7]} 8... Bxf3 {[%clk 0:02:56.3]} 9. Qxf3 {[%clk 0:02:57.6]} 9... Nbd7
{[%clk 0:02:56.8]} 10. Bg5 {[%clk 0:02:58.3]} 10... Qa5 {[%clk 0:02:55.6]} 11.
Bh4 {[%clk 0:02:54.9]} 11... e5 {[%clk 0:02:45.4]} 12. dxe5 {[%clk 0:02:54.6]}
12... Nxe5 {[%clk 0:02:44.4]} 13. Qe2 {[%clk 0:02:51.9]} 13... Rfe8 {[%clk
0:02:25.4]} 14. Rad1 {[%clk 0:02:46.9]} 14... Qc5 {[%clk 0:02:20.3]} 15. Kh1
{[%clk 0:02:40]} 15... b5 {[%clk 0:02:20.5]} 16. Rfe1 {[%clk 0:01:57.5]} 16...
Nc4 {[%clk 0:02:16.3]} 17. Bxc4 {[%clk 0:01:55.1]} 17... bxc4 {[%clk 0:02:16.9]}
18. Bg3 {[%clk 0:01:37.6]} 18... d5 {[%clk 0:02:16.3]} 19. Qd2 {[%clk
0:01:18.3]} 19... Nxe4 {[%clk 0:02:05.5]} 20. Nxe4 {[%clk 0:01:16.8]} 20... dxe4
{[%clk 0:02:03.5]} 21. c3 {[%clk 0:01:11.8]} 21... Qb6 {[%clk 0:01:44.2]} 22.
Qe2 {[%clk 0:00:51.2]} 22... Qb5 {[%clk 0:01:13.9]} 23. Rd7 {[%clk 0:00:49.8]}
23... h6 {[%clk 0:00:52.5]} 24. Red1 {[%clk 0:00:44.8]} 24... Re6 {[%clk
0:00:52.8]} 25. Rc7 {[%clk 0:00:38.3]} 25... Rae8 {[%clk 0:00:43.5]} 26. Rdd7
{[%clk 0:00:37.5]} 26... Rf6 {[%clk 0:00:41.3]} 27. Rxa7 {[%clk 0:00:30.5]}
27... Rf5 {[%clk 0:00:28.1]} 28. Re7 {[%clk 0:00:28.4]} 28... c5 {[%clk
0:00:10.2]} 29. Rab7 {[%clk 0:00:18.8]} 29... Qc6 {[%clk 0:00:09.1]} 30. Qxc4
{[%clk 0:00:16.5]} 30... Rxe7 {[%clk 0:00:08.2]} 31. Rxe7 {[%clk 0:00:17.4]}
31... Rd5 {[%clk 0:00:02.3]} 32. Qxe4 {[%clk 0:00:16.5]} 32... Rd1+ {[%clk
0:00:02.4]} 33. Kh2 {[%clk 0:00:17.1]} 33... Qxe4 {[%clk 0:00:02.9]} 34. Rxe4
{[%clk 0:00:16.8]} 34... Rd2 {[%clk 0:00:03.8]} 35. Re8+ {[%clk 0:00:13.3]}
35... Kh7 {[%clk 0:00:03.7]} 36. Re7 {[%clk 0:00:13.6]} 36... Rxb2 {[%clk
0:00:03.8]} 37. Rxf7 {[%clk 0:00:13.6]} 37... Kg8 {[%clk 0:00:04.2]} 38. Rc7
{[%clk 0:00:13.1]} 38... Bxc3 {[%clk 0:00:03.6]} 39. Rxc5 {[%clk 0:00:13]} 39...
Bd4 {[%clk 0:00:04.2]} 40. Rc6 {[%clk 0:00:12.6]} 40... Kf7 {[%clk 0:00:02.7]}
41. a4 {[%clk 0:00:11.3]} 41... Bxf2 {[%clk 0:00:02.5]} 42. Bxf2 {[%clk
0:00:10.9]} 42... Rxf2 {[%clk 0:00:03.4]} 43. a5 {[%clk 0:00:11.5]} 43... Ra2
{[%clk 0:00:04]} 44. a6 {[%clk 0:00:11.9]} 44... h5 {[%clk 0:00:04.3]} 45. Kg3
{[%clk 0:00:11.9]} 45... Ra4 {[%clk 0:00:04.4]} 46. Kf3 {[%clk 0:00:10.6]} 46...
h4 {[%clk 0:00:04.4]} 47. Rc7+ {[%clk 0:00:04.6]} 47... Kf6 {[%clk 0:00:04.2]}
48. a7 {[%clk 0:00:05.2]} 48... Kg5 {[%clk 0:00:04.5]} 49. Ke3 {[%clk
0:00:04.9]} 49... Ra2 {[%clk 0:00:04]} 50. Rf7 {[%clk 0:00:04.2]} 50... Ra3+
{[%clk 0:00:02.9]} 51. Kd4 {[%clk 0:00:04.5]} 51... Ra4+ {[%clk 0:00:03.1]} 52.
Kc5 {[%clk 0:00:04.9]} 52... Ra1 {[%clk 0:00:03.9]} 53. Kb6 {[%clk 0:00:04.9]}
53... Ra2 {[%clk 0:00:03.1]} 54. Kb7 {[%clk 0:00:04.6]} 54... Rb2+ {[%clk
0:00:03.4]} 55. Kc8 {[%clk 0:00:05.1]} 55... Ra2 {[%clk 0:00:03.5]} 56. Kb8
{[%clk 0:00:05.2]} 56... Rb2+ {[%clk 0:00:03.5]} 57. Rb7 {[%clk 0:00:05.5]}
57... Ra2 {[%clk 0:00:04.2]} 58. a8=Q {[%clk 0:00:05.9]} 58... Rxa8+ {[%clk
0:00:05.1]} 59. Kxa8 {[%clk 0:00:06.5]} 59... Kf4 {[%clk 0:00:06]} 60. Rb4+
{[%clk 0:00:06.7]} 60... Kg5 {[%clk 0:00:03.9]} 61. Rg4+ {[%clk 0:00:07]} 61...
Kh5 {[%clk 0:00:04.8]} 62. Kb7 {[%clk 0:00:06.9]} 1-0